fUST/lending_fUST_20250423
["ID","MTS","AMOUNT","RATE_DAILY","PERIOD"]
[358725989,1745403077566,-500.0,0.0002475,30]
[358725990,1745403077575,-500.0,0.0002475,30]
[358725991,1745403077584,-500.0,0.0002475,30]
[358725992,1745403077729,-500.0,0.0002475,30]
[358725993,1745403077741,-468.20996336,0.0002475,30]
[358725994,1745403077750,-32829.88240858,0.000248,30]
[358725995,1745403077762,-12573.79847128,0.000248,30]
[358725996,1745403077774,-151.0,0.000248,7]
[358725997,1745403077784,-219.140886,0.000248,7]
[358725998,1745403077793,-219.140886,0.000248,7]
[358725999,1745403077803,-174.868336,0.000248,7]
[358726000,1745403077812,-174.868336,0.000248,7]
[358726001,1745403077822,-3455.956356,0.000248,7]
[358726002,1745403077833,-3455.956356,0.000248,7]
[358726003,1745403077842,-151.0,0.000248,7]
[358726004,1745403077851,-151.0,0.000248,7]
[358726005,1745403077861,-12573.79847128,0.000248,30]
[358726006,1745403077870,-481.545953,0.000248,2]
[358726007,1745403077879,-481.545953,0.000248,2]
[358726008,1745403077888,-160.0,0.000248,30]
[358726009,1745403077897,-160.0,0.000248,30]
[358726010,1745403077907,-181834.805056,0.000248,2]
[358726011,1745403077916,-839.95942076,0.000248,30]
[358726012,1745403077925,-1500.0,0.00024827,2]
[358726013,1745403077935,-250.0,0.00024842,2]
[358726014,1745403077944,-394.48436197,0.00024851,2]
[358726015,1745403077954,-394.48436197,0.00024855,2]
[358726016,1745403077963,-509.72,0.00024859,2]
[358726017,1745403077972,-835.53,0.00024859,2]
[358726018,1745403077982,-2593.26,0.00024859,2]
[358726019,1745403077992,-8207.28,0.00024859,2]
[358726020,1745403078001,-10366.63,0.00024859,2]
[358726021,1745403078011,-4233.86,0.00024859,2]
[358726022,1745403078021,-751.13,0.00024859,2]
[358726023,1745403078030,-500.0,0.00024859,2]
[358726024,1745403078040,-745.29,0.00024859,2]
[358726025,1745403078053,-565.1,0.00024862,2]
[358726026,1745403078063,-1088.04,0.00024862,2]
[358726027,1745403078074,-1553.74,0.00024862,2]
[358726028,1745403078085,-612.09,0.00024862,2]
[358726029,1745403078095,-562.58,0.00024862,2]
[358726030,1745403078105,-1393.65,0.00024862,2]
[358726031,1745403078115,-500.0,0.00024862,2]
[358726032,1745403078125,-783.91,0.00024862,2]
[358726033,1745403078137,-598.03,0.00024862,2]
[358726034,1745403078147,-537.24,0.00024862,2]
[358726035,1745403078156,-822.07,0.00024862,2]
[358726036,1745403078166,-524.38,0.00024862,2]
[358726037,1745403078176,-500.0,0.00024862,2]
[358726038,1745403078186,-3841.56,0.00024862,2]
[358726039,1745403078196,-500.0,0.00024862,2]
[358726040,1745403078206,-500.0,0.00024863,2]
[358726041,1745403078216,-656.41,0.00024863,2]
[358726042,1745403078226,-734.03,0.00024863,2]
[358726043,1745403078238,-682.6,0.00024863,2]
[358726044,1745403078249,-727.39,0.00024863,2]
[358726045,1745403078259,-686.67,0.00024863,2]
[358726046,1745403078269,-759.45,0.00024863,2]
[358726047,1745403078278,-797.43,0.00024863,2]
[358726048,1745403078288,-593.54,0.00024863,2]
[358726049,1745403078297,-624.72,0.00024863,2]
[358726050,1745403078307,-3144.14,0.00024863,2]
[358726051,1745403078318,-2273.01,0.00024863,2]
[358726052,1745403078328,-500.0,0.00024863,2]
[358726053,1745403078337,-613.49,0.00024863,2]
[358726054,1745403078347,-874.61,0.00024863,2]
[358726055,1745403078356,-516.41794026,0.00024863,2]
[358726056,1745403078365,-500.0,0.00024863,2]
[358726057,1745403078375,-656.52,0.00024863,2]
[358726058,1745403078385,-427.95180913,0.00024863,2]
[358726059,1745403078394,-500.0,0.00024863,2]
[358726060,1745403078404,-526.63,0.00024863,2]
[358726061,1745403078414,-1958.53,0.00024863,2]
[358726062,1745403078423,-628.59,0.00024863,2]
[358726063,1745403078434,-626.92,0.00024863,2]
[358726064,1745403078444,-500.0,0.00024863,2]
[358726065,1745403078454,-500.0,0.00024863,2]
[358726066,1745403078464,-394.48436197,0.00024869,2]
[358726067,1745403078474,-394.48436197,0.00024895,2]
[358726068,1745403078485,-151.0,0.000249,7]
[358726069,1745403078496,-219.140886,0.000249,7]
[358726070,1745403078505,-219.140896,0.000249,7]
[358726071,1745403078515,-174.868336,0.000249,7]
[358726072,1745403078525,-174.868336,0.000249,7]
[358726073,1745403078536,-3455.956356,0.000249,7]
[358726074,1745403078546,-3455.956356,0.000249,7]
[358726075,1745403078556,-182.68854,0.000249,7]
[358726076,1745403078565,-182.68854,0.000249,7]
[358726077,1745403078575,-151.0,0.000249,7]
[358726078,1745403078585,-151.0,0.000249,7]
[358726079,1745403078593,-481.545953,0.000249,2]
[358726080,1745403078602,-481.545953,0.000249,2]
[358726081,1745403078612,-204573.14582023,0.000249,2]
[358726082,1745403078747,-500.0,0.00019931,2]
[358726083,1745403078758,-500.0,0.00020205,2]
[358726084,1745403078769,-500.0,0.00020479,2]
[358726085,1745403078778,-500.0,0.00020753,2]
[358726086,1745403078789,-644.07303292,0.00021027,2]
[358726087,1745403078799,-618.1,0.00023218,2]
[358726088,1745403078808,-618.1,0.00023492,2]
[358726089,1745403078818,-618.1,0.00023766,2]
[358726090,1745403078827,-618.1,0.0002404,2]
[358726091,1745403078838,-618.1,0.00024314,2]
[358726092,1745403078848,-618.1,0.00024588,2]
[358726093,1745403078857,-618.1,0.00024862,2]
[358726094,1745403078867,-61288.52895477,0.000249,2]
[358726095,1745403078877,-839.95942076,0.000249,7]
[358726096,1745403078887,-420.82143104,0.000249,7]
[358726097,1745403078897,-500.0,0.00024903,2]
[358726098,1745403078906,-8396.55,0.00024931,2]
[358726099,1745403078916,-514.07837986,0.00024932,2]
[358726100,1745403078926,-778.479,0.00024943,2]
[358726101,1745403078935,-2200.0,0.00024943,2]
[358726102,1745403078947,-341.0,0.00024959,15]
[358726103,1745403078957,-2253.75,0.00024964,2]
[358726104,1745403078967,-517.89,0.00024964,2]
[358726105,1745403078978,-500.0,0.00024964,2]
[358726106,1745403078993,-2458.84,0.00024964,2]
[358726107,1745403079004,-2705.46515529,0.00024964,2]
[358726108,1745403079029,-2069.09484471,0.00024964,2]
[358726109,1745403079039,-710.56100935,0.00024964,2]
[358726110,1745403079051,-5026.71899065,0.00024964,2]
[358726111,1745403079065,-651.56,0.00024966,2]
[358726112,1745403079075,-566.38,0.00024966,2]
[358726113,1745403079087,-612.07482634,0.00024966,2]
[358726114,1745403079097,-683.18,0.00024966,2]
[358726115,1745403079108,-500.0,0.00024973,2]
[358726116,1745403079119,-500.0,0.00024973,2]
[358726117,1745403079129,-1095.858281,0.0002498,5]
[358726118,1745403079140,-931.60005491,0.00025,3]
[358726119,1745403079165,-0.61025846,0.00025,3]
[358726120,1745403079385,-500.0,0.00019926,2]
[358726121,1745403079397,-500.0,0.00019926,2]
[358726122,1745403079407,-500.0,0.00019926,2]
[358726123,1745403079417,-500.0,0.00019931,2]
[358726124,1745403079427,-500.0,0.00019931,2]
[358726125,1745403079436,-500.0,0.00020205,2]
[358726126,1745403079447,-336.70510552,0.00020479,2]
[358726127,1745403079457,-69.50841551,0.00025,3]
[358726128,1745403079467,-200000.0,0.00025,2]
[358726129,1745403079477,-333.13193332,0.00025,2]
[358726130,1745403079490,-2036.153123,0.00025,31]
[358726131,1745403079500,-38748.56997548,0.00025,2]
[358726132,1745403079510,-20393.39290708,0.00025,5]
[358726133,1745403079519,-8751.79629414,0.00025,120]
[358726134,1745403079529,-174.868336,0.00025,7]
[358726135,1745403079538,-174.868336,0.00025,7]
[358726136,1745403079548,-1500.0,0.00025,10]
[358726137,1745403079559,-1500.0,0.00025,10]
[358726138,1745403079569,-1500.0,0.00025,10]
[358726139,1745403079579,-1500.0,0.00025,10]
[358726140,1745403079588,-1500.0,0.00025,10]
[358726141,1745403079598,-1500.0,0.00025,10]
[358726142,1745403079608,-500.0,0.00025,10]
[358726143,1745403079618,-499.3,0.00025,10]
[358726144,1745403079628,-500.0,0.00025,10]
[358726145,1745403079638,-1500.0,0.00025,10]
[358726146,1745403079651,-500.0,0.00025,10]
[358726147,1745403079662,-1500.0,0.00025,10]
[358726148,1745403079672,-500.0,0.00025,10]
[358726149,1745403079682,-1500.0,0.00025,10]
[358726150,1745403079692,-500.0,0.00025,10]
[358726151,1745403079702,-428.32927257,0.00025,10]
[358726152,1745403079712,-1500.0,0.00025,10]
[358726153,1745403079723,-500.0,0.00025,10]
[358726154,1745403079732,-500.0,0.00025,10]
[358726155,1745403079748,-1500.0,0.00025,10]
[358726156,1745403079759,-500.0,0.00025,10]
[358726157,1745403079769,-500.0,0.00025,10]
[358726158,1745403079780,-1500.0,0.00025,10]
[358726159,1745403079790,-500.0,0.00025,10]
[358726160,1745403079800,-1500.0,0.00025,10]
[358726161,1745403079810,-500.0,0.00025,10]
[358726162,1745403079820,-1500.0,0.00025,10]
[358726163,1745403079830,-500.0,0.00025,10]
[358726164,1745403079839,-500.0,0.00025,10]
[358726165,1745403079848,-508.85861391,0.00025,10]
[358726166,1745403079858,-500.0,0.00025,10]
[358726167,1745403079868,-500.0,0.00025,10]
[358726168,1745403079878,-500.0,0.00025,10]
[358726169,1745403079887,-197.40204187,0.00025,10]
[358726170,1745403079896,-500.0,0.00025,10]
[358726171,1745403080039,-500.0,0.00025,10]
[358726172,1745403080052,-500.0,0.00025,10]
[358726173,1745403080061,-500.0,0.00025,10]
[358726174,1745403080070,-500.0,0.00025,10]
[358726175,1745403080079,-3455.956356,0.00025,7]
[358726176,1745403080089,-500.0,0.00025,10]
[358726177,1745403080098,-500.0,0.00025,10]
[358726178,1745403080107,-500.0,0.00025,10]
[358726179,1745403080117,-500.0,0.00025,10]
[358726180,1745403080128,-500.0,0.00025,10]
[358726181,1745403080137,-500.0,0.00025,10]
[358726182,1745403080147,-500.0,0.00025,10]
[358726183,1745403080156,-1200.0,0.00025,10]
[358726184,1745403080166,-500.0,0.00025,10]
[358726185,1745403080175,-1200.0,0.00025,10]
[358726186,1745403080184,-1200.0,0.00025,10]
[358726187,1745403080194,-1200.0,0.00025,10]
[358726188,1745403080203,-500.0,0.00025,10]
[358726189,1745403080212,-1200.0,0.00025,10]
[358726190,1745403080221,-3455.956356,0.00025,7]
[358726191,1745403080231,-1200.0,0.00025,10]
[358726192,1745403080243,-1200.0,0.00025,10]
[358726193,1745403080253,-1200.0,0.00025,10]
[358726194,1745403080262,-1200.0,0.00025,10]
[358726195,1745403080271,-1200.0,0.00025,10]
[358726196,1745403080280,-1200.0,0.00025,10]
[358726197,1745403080291,-1200.0,0.00025,10]
[358726198,1745403080301,-1200.0,0.00025,10]
[358726199,1745403080310,-1200.0,0.00025,10]
[358726200,1745403080319,-1200.0,0.00025,10]
[358726201,1745403080328,-182.68854,0.00025,7]
[358726202,1745403080337,-182.68854,0.00025,7]
[358726203,1745403080346,-151.65323998,0.00025,2]
[358726204,1745403080356,-500.0,0.00025,10]
[358726205,1745403080365,-499.3,0.00025,10]
[358726206,1745403080373,-1000.0,0.00025,5]
[358726207,1745403080382,-151.0,0.00025,7]
[358726208,1745403080391,-151.0,0.00025,7]
[358726209,1745403080400,-160.0,0.00025,10]
[358726210,1745403080409,-160.0,0.00025,30]
[358726211,1745403080418,-160.0,0.00025,7]
[358726212,1745403080427,-160.0,0.00025,7]
[358726213,1745403080436,-12573.79847128,0.00025,10]
[358726214,1745403080446,-481.545953,0.00025,2]
[358726215,1745403080456,-481.54594711,0.00025,2]
[358726216,1745403080466,-160.0,0.00025,10]
[358726217,1745403080476,-160.0,0.00025,10]
[358726218,1745403080489,-160.0,0.00025,30]
[358726219,1745403080499,-160.0,0.00025,7]
[358726220,1745403080509,-160.0,0.00025,10]
[358726221,1745403080520,-202.055314,0.00025,2]
[358726222,1745403080531,-839.95942076,0.00025,10]
[358726223,1745403080542,-420.82143104,0.00025,10]
[358726224,1745403080552,-420.82143104,0.00025,30]
[358726225,1745403080563,-4829.07264048,0.00025003,120]
[358726226,1745403080572,-2000.0,0.00025024,4]
[358726227,1745403080583,-8316.09559496,0.00025038,5]
[358726228,1745403080593,-509.72,0.00025133,2]
[358726229,1745403080603,-835.53,0.00025133,2]
[358726230,1745403080613,-2593.26,0.00025133,2]
[358726231,1745403080624,-8207.28,0.00025133,2]
[358726232,1745403080635,-10366.63,0.00025133,2]
[358726233,1745403080645,-4233.86,0.00025133,2]
[358726234,1745403080656,-751.13,0.00025133,2]
[358726235,1745403080666,-500.0,0.00025133,2]
[358726236,1745403080676,-745.29,0.00025133,2]
[358726237,1745403080687,-565.1,0.00025136,2]
[358726238,1745403080698,-1088.04,0.00025136,2]
[358726239,1745403080710,-1553.74,0.00025136,2]
[358726240,1745403080719,-612.09,0.00025136,2]
[358726241,1745403080728,-562.58,0.00025136,2]
[358726242,1745403080744,-1393.65,0.00025136,2]
[358726243,1745403080754,-500.0,0.00025136,2]
[358726244,1745403080765,-783.91,0.00025136,2]
[358726245,1745403080775,-598.03,0.00025136,2]
[358726246,1745403080786,-537.24,0.00025136,2]
[358726247,1745403080796,-822.07,0.00025136,2]
[358726248,1745403080807,-524.38,0.00025136,2]
[358726249,1745403080816,-500.0,0.00025136,2]
[358726250,1745403080826,-3841.56,0.00025136,2]
[358726251,1745403080836,-500.0,0.00025136,2]
[358726252,1745403080846,-618.1,0.00025136,2]
[358726253,1745403080855,-500.0,0.00025137,2]
[358726254,1745403080865,-656.41,0.00025137,2]
[358726255,1745403080874,-734.03,0.00025137,2]
[358726256,1745403080884,-682.6,0.00025137,2]
[358726257,1745403080894,-727.39,0.00025137,2]
[358726258,1745403080903,-686.67,0.00025137,2]
[358726259,1745403080912,-759.45,0.00025137,2]
[358726260,1745403080922,-797.43,0.00025137,2]
[358726261,1745403080931,-593.54,0.00025137,2]
[358726262,1745403080941,-624.72,0.00025137,2]
[358726263,1745403080949,-3144.14,0.00025137,2]
[358726264,1745403080959,-2273.01,0.00025137,2]
[358726265,1745403080968,-500.0,0.00025137,2]
[358726266,1745403080977,-613.49,0.00025137,2]
[358726267,1745403080990,-874.61,0.00025137,2]
[358726268,1745403080999,-500.0,0.00025137,2]
[358726269,1745403081009,-656.52,0.00025137,2]
[358726270,1745403081018,-500.0,0.00025137,2]
[358726271,1745403081027,-526.63,0.00025137,2]
[358726272,1745403081037,-1958.53,0.00025137,2]
[358726273,1745403081047,-628.59,0.00025137,2]
[358726274,1745403081058,-626.92,0.00025137,2]
[358726275,1745403081078,-500.0,0.00025137,2]
[358726276,1745403081095,-500.0,0.00025137,2]
[358726277,1745403081109,-500.0,0.00025177,2]
[358726278,1745403081124,-8396.55,0.00025205,2]
[358726279,1745403081141,-153.0,0.00025205,2]
[358726280,1745403081157,-566.3756473,0.00025205,2]
[358726281,1745403081174,-2000.0,0.00025238,2]
[358726282,1745403081189,-517.89,0.00025238,2]
[358726283,1745403081203,-500.0,0.00025238,2]
[358726284,1745403081220,-2458.84,0.00025238,2]
[358726285,1745403081234,-4774.56,0.00025238,2]
[358726286,1745403081250,-5737.28,0.00025238,2]
[358726287,1745403081265,-651.56,0.0002524,2]
[358726288,1745403081281,-566.38,0.0002524,2]
[358726289,1745403081297,-683.18,0.0002524,2]
[358726290,1745403081313,-162.909661,0.00025342,2]
[358726291,1745403081329,-509.72,0.00025407,2]
[358726292,1745403081341,-835.53,0.00025407,2]
[358726293,1745403081355,-2593.26,0.00025407,2]
[358726294,1745403081373,-8207.28,0.00025407,2]
[358726295,1745403081385,-10366.63,0.00025407,2]
[358726296,1745403081401,-4233.86,0.00025407,2]
[358726297,1745403081413,-751.13,0.00025407,2]
[358726298,1745403081426,-500.0,0.00025407,2]
[358726299,1745403081441,-745.29,0.00025407,2]
[358726300,1745403081455,-565.1,0.0002541,2]
[358726301,1745403081470,-1088.04,0.0002541,2]
[358726302,1745403081484,-1553.74,0.0002541,2]
[358726303,1745403081500,-612.09,0.0002541,2]
[358726304,1745403081513,-562.58,0.0002541,2]
[358726305,1745403081527,-1393.65,0.0002541,2]
[358726306,1745403081540,-275.64829762,0.0002541,2]
[358726307,1745403081554,-783.91,0.0002541,2]
[358726308,1745403081567,-598.03,0.0002541,2]
[358726309,1745403081582,-822.07,0.0002541,2]
[358726310,1745403081595,-537.24,0.0002541,2]
[358726311,1745403081609,-524.38,0.0002541,2]
[358726312,1745403081622,-500.0,0.0002541,2]
[358726313,1745403081636,-3841.56,0.0002541,2]
[358726314,1745403081650,-500.0,0.0002541,2]
[358726315,1745403081659,-618.1,0.0002541,2]
[358726316,1745403081669,-500.0,0.00025411,2]
[358726317,1745403081681,-656.41,0.00025411,2]
[358726318,1745403081691,-734.03,0.00025411,2]
[358726319,1745403081700,-682.6,0.00025411,2]
[358726320,1745403081710,-727.39,0.00025411,2]
[358726321,1745403081720,-686.67,0.00025411,2]
[358726322,1745403081730,-759.45,0.00025411,2]
[358726323,1745403081741,-797.43,0.00025411,2]
[358726324,1745403081751,-593.54,0.00025411,2]
[358726325,1745403081761,-624.72,0.00025411,2]
[358726326,1745403081771,-3144.14,0.00025411,2]
[358726327,1745403081781,-2273.01,0.00025411,2]
[358726328,1745403081790,-500.0,0.00025411,2]
[358726329,1745403081800,-613.49,0.00025411,2]
[358726330,1745403081809,-874.61,0.00025411,2]
[358726331,1745403081819,-276.38366263,0.00025411,2]
[358726332,1745403081829,-656.52,0.00025411,2]
[358726333,1745403081838,-500.0,0.00025411,2]
[358726334,1745403081848,-526.63,0.00025411,2]
[358726335,1745403081858,-1958.53,0.00025411,2]
[358726336,1745403081867,-628.59,0.00025411,2]
[358726337,1745403081877,-626.92,0.00025411,2]
[358726338,1745403081887,-500.0,0.00025411,2]
[358726339,1745403081897,-500.0,0.00025411,2]
[358726340,1745403081906,-500.0,0.00025451,2]
[358726341,1745403081914,-8396.55,0.00025479,2]
[358726342,1745403081924,-517.89,0.00025512,2]
[358726343,1745403081934,-201.55868888,0.00025512,2]
[358726344,1745403081944,-2458.84,0.00025512,2]
[358726345,1745403081954,-4774.56,0.00025512,2]
[358726346,1745403081963,-5737.28,0.00025512,2]
[358726347,1745403081973,-651.56,0.00025514,2]
[358726348,1745403081983,-566.38,0.00025514,2]
[358726349,1745403081996,-683.18,0.00025514,2]
[358726350,1745403082006,-2000.0,0.00025521,4]
[358726351,1745403082016,-314.9434756,0.00025562,2]
[358726352,1745403082026,-5000.0,0.00025579,2]
[358726353,1745403082035,-22235.15292792,0.000256,2]
[358726354,1745403082047,-2500.0,0.00025649,2]
[358726355,1745403082058,-509.72,0.00025681,2]
[358726356,1745403082068,-835.53,0.00025681,2]
[358726357,1745403082078,-2593.26,0.00025681,2]
[358726358,1745403082089,-8207.28,0.00025681,2]
[358726359,1745403082099,-10366.63,0.00025681,2]
[358726360,1745403082108,-4233.86,0.00025681,2]
[358726361,1745403082118,-751.13,0.00025681,2]
[358726362,1745403082129,-500.0,0.00025681,2]
[358726363,1745403082140,-745.29,0.00025681,2]
[358726364,1745403082149,-565.1,0.00025684,2]
[358726365,1745403082159,-1088.04,0.00025684,2]
[358726366,1745403082168,-1553.74,0.00025684,2]
[358726367,1745403082181,-612.09,0.00025684,2]
[358726368,1745403082190,-562.58,0.00025684,2]
[358726369,1745403082200,-1393.65,0.00025684,2]
[358726370,1745403082208,-783.91,0.00025684,2]
[358726371,1745403082604,-598.03,0.00025684,2]
[358726372,1745403082616,-822.07,0.00025684,2]
[358726373,1745403082626,-537.24,0.00025684,2]
[358726374,1745403082635,-524.38,0.00025684,2]
[358726375,1745403082645,-500.0,0.00025684,2]
[358726376,1745403082655,-3841.56,0.00025684,2]
[358726377,1745403082664,-500.0,0.00025684,2]
[358726378,1745403082674,-618.1,0.00025684,2]
[358726379,1745403082683,-480.02792584,0.00025685,2]
[358726380,1745403082692,-656.41,0.00025685,2]
[358726381,1745403082701,-734.03,0.00025685,2]
[358726382,1745403082710,-682.6,0.00025685,2]
[358726383,1745403082720,-727.39,0.00025685,2]
[358726384,1745403082731,-686.67,0.00025685,2]
[358726385,1745403082741,-759.45,0.00025685,2]
[358726386,1745403082750,-797.43,0.00025685,2]
[358726387,1745403082759,-593.54,0.00025685,2]
[358726388,1745403082768,-624.72,0.00025685,2]
[358726389,1745403082778,-3144.14,0.00025685,2]
[358726390,1745403082787,-2273.01,0.00025685,2]
[358726391,1745403082797,-500.0,0.00025685,2]
[358726392,1745403082806,-613.49,0.00025685,2]
[358726393,1745403082815,-874.61,0.00025685,2]
[358726394,1745403082825,-656.52,0.00025685,2]
[358726395,1745403082835,-500.0,0.00025685,2]
[358726396,1745403082844,-526.63,0.00025685,2]
[358726397,1745403082854,-1958.53,0.00025685,2]
[358726398,1745403082863,-628.59,0.00025685,2]
[358726399,1745403082872,-626.92,0.00025685,2]
[358726400,1745403082882,-601.35232826,0.00025685,2]
[358726401,1745403082891,-264.88583415,0.00025685,2]
[358726402,1745403082900,-500.0,0.00025725,2]
[358726403,1745403082910,-823.0,0.00025732,2]
[358726404,1745403082919,-1000.0,0.00025752,2]
[358726405,1745403082928,-500.0,0.00025752,2]
[358726406,1745403082937,-8396.55,0.00025753,2]
[358726407,1745403082948,-517.89,0.00025786,2]
[358726408,1745403082967,-2458.84,0.00025786,2]
[358726409,1745403082979,-4774.56,0.00025786,2]
[358726410,1745403082988,-5737.28,0.00025786,2]
[358726411,1745403082997,-651.56,0.00025788,2]
[358726412,1745403083007,-566.38,0.00025788,2]
[358726413,1745403083017,-683.18,0.00025788,2]
[358726414,1745403083026,-174.868336,0.00025789,7]
[358726415,1745403083036,-174.868336,0.00025789,7]
[358726416,1745403083047,-3455.956356,0.00025789,7]
[358726417,1745403083059,-3455.956356,0.00025789,7]
[358726418,1745403083069,-182.68854,0.00025789,7]
[358726419,1745403083078,-182.68854,0.00025789,7]
[358726420,1745403083089,-283.703,0.00025849,2]
[358726421,1745403083099,-8316.09559496,0.00025866,6]
[358726422,1745403083109,-1200.0,0.00025904,2]
[358726423,1745403083119,-509.72,0.00025955,2]
[358726424,1745403083130,-835.53,0.00025955,2]
[358726425,1745403083140,-2593.26,0.00025955,2]
[358726426,1745403083149,-8207.28,0.00025955,2]
[358726427,1745403083159,-10366.63,0.00025955,2]
[358726428,1745403083170,-4233.86,0.00025955,2]
[358726429,1745403083180,-751.13,0.00025955,2]
[358726430,1745403083189,-196.59870695,0.00025955,2]
[358726431,1745403083198,-745.29,0.00025955,2]
[358726432,1745403083208,-565.1,0.00025958,2]
[358726433,1745403083218,-1088.04,0.00025958,2]
[358726434,1745403083228,-1553.74,0.00025958,2]
[358726435,1745403083238,-612.09,0.00025958,2]
[358726436,1745403083248,-562.58,0.00025958,2]
[358726437,1745403083257,-1393.65,0.00025958,2]
[358726438,1745403083268,-783.91,0.00025958,2]
[358726439,1745403083278,-598.03,0.00025958,2]
[358726440,1745403083288,-822.07,0.00025958,2]
[358726441,1745403083298,-537.24,0.00025958,2]
[358726442,1745403083308,-524.38,0.00025958,2]
[358726443,1745403083318,-500.0,0.00025958,2]
[358726444,1745403083327,-3841.56,0.00025958,2]
[358726445,1745403083337,-500.0,0.00025958,2]
[358726446,1745403083346,-618.1,0.00025958,2]
[358726447,1745403083356,-656.41,0.00025959,2]
[358726448,1745403083366,-734.03,0.00025959,2]
[358726449,1745403083376,-682.6,0.00025959,2]
[358726450,1745403083387,-727.39,0.00025959,2]
[358726451,1745403083398,-686.67,0.00025959,2]
[358726452,1745403083408,-759.45,0.00025959,2]
[358726453,1745403083418,-797.43,0.00025959,2]
[358726454,1745403083429,-593.54,0.00025959,2]
[358726455,1745403083438,-624.72,0.00025959,2]
[358726456,1745403083447,-3144.14,0.00025959,2]
[358726457,1745403083457,-2273.01,0.00025959,2]
[358726458,1745403083467,-325.68705632,0.00025959,2]
[358726459,1745403083477,-613.49,0.00025959,2]
[358726460,1745403083489,-874.61,0.00025959,2]
[358726461,1745403083499,-656.52,0.00025959,2]
[358726462,1745403083509,-321.3,0.00025959,2]
[358726463,1745403083519,-526.63,0.00025959,2]
[358726464,1745403083529,-1958.53,0.00025959,2]
[358726465,1745403083540,-628.59,0.00025959,2]
[358726466,1745403083550,-626.92,0.00025959,2]
[358726467,1745403083560,-174.7434727,0.00025984,2]
[358726468,1745403083570,-174.7434727,0.00025984,2]
[358726469,1745403083579,-343.933143,0.00025984,2]
[358726470,1745403083589,-566.3756473,0.00025984,2]
[358726471,1745403083599,-174.7434727,0.00025984,2]
[358726472,1745403083608,-157.1833178,0.00025984,2]
[358726473,1745403083618,-566.3756473,0.00025984,2]
[358726474,1745403083628,-566.3756473,0.00025984,2]
[358726475,1745403083638,-157.1833178,0.00025984,2]
[358726476,1745403083648,-566.3756473,0.00025984,2]
[358726477,1745403083658,-157.1833178,0.00025984,2]
[358726478,1745403083668,-595.9911855,0.00025984,2]
[358726479,1745403083677,-314.3275732,0.00025984,2]
[358726480,1745403083686,-500.0,0.00025999,2]
[358726481,1745403083695,-1825.91836959,0.00026,2]
[358726482,1745403083704,-2000.0,0.00026019,4]
[358726483,1745403083714,-8396.55,0.00026027,2]
[358726484,1745403083724,-3000.0,0.0002606,2]
[358726485,1745403083734,-517.89,0.0002606,2]
[358726486,1745403083745,-2458.84,0.0002606,2]
[358726487,1745403083755,-4774.56,0.0002606,2]
[358726488,1745403083764,-5737.28,0.0002606,2]